bitfinex/quotes_BTCUSD_20250119
["timestamp","ask_amount","ask_price","bid_price","bid_amount"]
[1737263518880,0.73513193,104570.0,104560.0,0.00047873]
[1737263520003,0.83513193,104570.0,104560.0,0.00047873]
[1737263521335,1.04735853,104570.0,104560.0,0.00047873]
[1737263522363,1.21713981,104570.0,104560.0,0.00047873]
[1737263522621,1.31638062,104570.0,104560.0,0.00047873]
[1737263522813,1.21713981,104570.0,104560.0,0.00047873]
[1737263524032,1.42936641,104570.0,104560.0,0.00047873]
[1737263526870,1.21713981,104570.0,104560.0,0.00047873]
[1737263527687,1.34447577,104570.0,104560.0,0.00047873]
[1737263527887,1.19371658,104570.0,104560.0,0.00047873]
[1737263528515,1.15127126,104570.0,104560.0,0.00047873]
[1737263528848,2.00127126,104570.0,104560.0,0.00047873]
[1737263529052,1.85127126,104570.0,104560.0,0.00047873]
[1737263530010,1.63904466,104570.0,104560.0,0.00047873]
[1737263531611,1.53980385,104570.0,104560.0,0.00047873]
[1737263531819,0.83980385,104570.0,104560.0,0.00047873]
[1737263533365,0.92176981,104570.0,104560.0,0.00047873]
[1737263533945,0.83980385,104570.0,104560.0,0.00047873]
[1737263534823,1.53980385,104570.0,104560.0,0.00047873]
[1737263535153,2.36564728,104570.0,104560.0,0.00047873]
[1737263535534,1.76488809,104570.0,104560.0,0.00047873]
[1737263535745,1.66564728,104570.0,104560.0,0.00047873]
[1737263535885,0.93980385,104570.0,104560.0,0.00047873]
[1737263537335,1.63980385,104570.0,104560.0,0.00047873]
[1737263537539,1.53980385,104570.0,104560.0,0.00047873]
[1737263537740,1.63904466,104570.0,104560.0,0.00047873]
[1737263539545,1.55783789,104570.0,104560.0,0.00047873]
[1737263539781,1.63980385,104570.0,104560.0,0.00047873]
[1737263539982,1.67163784,104570.0,104560.0,0.00047873]
[1737263540403,1.38513193,104570.0,104560.0,0.00047873]
[1737263542127,1.28513193,104570.0,104560.0,0.00047873]
[1737263542483,1.38437274,104570.0,104560.0,0.00047873]
[1737263542828,1.28513193,104570.0,104560.0,0.00047873]
[1737263543062,1.5404714,104570.0,104560.0,0.00047873]
[1737263543858,1.6543548,104570.0,104560.0,0.00047873]
[1737263544517,2.09442228,104570.0,104560.0,0.00047873]
[1737263544715,2.19366309,104570.0,104560.0,0.00047873]
[1737263545533,0.4,104550.0,104530.0,0.01178663]
[1737263545735,0.5545012,104540.0,104530.0,0.01183677]
[1737263546090,0.55336377,104540.0,104530.0,0.01192828]
[1737263546443,1.08062182,104540.0,104530.0,0.01192828]
[1737263546646,1.08062182,104540.0,104530.0,0.00893716]
[1737263546849,1.08062182,104540.0,104530.0,0.00056945]
[1737263547233,0.76626292,104540.0,104530.0,0.00056945]
[1737263547658,0.86626292,104540.0,104530.0,0.00056945]
[1737263548272,1.1217419,104540.0,104530.0,0.00056945]
[1737263548881,1.17530209,104540.0,104530.0,0.00056945]
[1737263549243,0.91982311,104540.0,104530.0,0.00056945]
[1737263549561,0.86626292,104540.0,104530.0,0.00056945]
[1737263549972,0.89434288,104540.0,104530.0,0.00056945]
[1737263550787,1.06446916,104540.0,104530.0,0.00056945]
[1737263552446,1.21446916,104540.0,104530.0,0.00056945]
[1737263553528,1.11446916,104540.0,104530.0,0.00056945]
[1737263553754,1.04982186,104540.0,104530.0,0.00056945]
[1737263554183,1.19982186,104540.0,104530.0,0.00056945]
[1737263554393,0.94401931,104540.0,104530.0,0.00056945]
[1737263554793,0.79401931,104540.0,104530.0,0.00056945]
[1737263555373,0.96407582,104540.0,104530.0,0.00056945]
[1737263555586,1.11407582,104540.0,104530.0,0.00056945]
[1737263555762,1.21331663,104540.0,104530.0,0.00056945]
[1737263555964,1.31331663,104540.0,104530.0,0.00056945]
[1737263556186,1.42697497,104540.0,104530.0,0.00056945]
[1737263556997,1.34194474,104540.0,104530.0,0.00056945]
[1737263559288,1.42695365,104540.0,104530.0,0.00056945]
[1737263561173,0.79954476,104540.0,104530.0,0.00056945]
[1737263561664,0.88151072,104540.0,104530.0,0.00056945]
[1737263562070,0.49855506,104540.0,104530.0,0.00056945]
[1737263562653,0.54535506,104540.0,104530.0,0.00056945]
[1737263562854,0.79459587,104540.0,104530.0,0.00056945]
[1737263563261,0.79535506,104540.0,104530.0,0.00056945]
[1737263563481,1.02665506,104540.0,104530.0,0.00056945]
[1737263564311,1.40961072,104540.0,104530.0,0.00056945]
[1737263564988,1.30961072,104540.0,104530.0,0.00056945]
[1737263565186,1.17460181,104540.0,104530.0,0.00056945]
[1737263565390,1.07460181,104540.0,104530.0,0.00056945]
[1737263565618,1.32460181,104540.0,104530.0,0.00056945]
[1737263565825,1.22460181,104540.0,104530.0,0.00056945]
[1737263566015,1.32460181,104540.0,104530.0,0.00056945]
[1737263566836,1.40964177,104540.0,104530.0,0.00056945]
[1737263567846,1.04705646,104540.0,104530.0,0.00056945]
[1737263568520,0.38295566,104540.0,104530.0,0.35904222]
[1737263568721,0.47435566,104540.0,104530.0,0.51290222]
[1737263568956,0.36289915,104540.0,104530.0,0.41290222]
[1737263569500,0.21289915,104540.0,104530.0,0.41290222]
[1737263569908,0.15,104550.0,104530.0,0.47559445]
[1737263570126,0.15,104550.0,104540.0,0.49117177]
[1737263570332,0.00089943,104560.0,104550.0,0.095648]
[1737263570463,0.00089943,104560.0,104550.0,0.118648]
[1737263570880,5.00089943,104560.0,104550.0,0.118648]
[1737263571425,5.00089943,104560.0,104550.0,0.12700623]
[1737263572010,5.00089943,104560.0,104550.0,0.13348623]
[1737263572940,5.00089943,104560.0,104550.0,0.21545219]
[1737263573351,5.00089943,104560.0,104550.0,0.20709396]
[1737263573554,5.00089943,104560.0,104550.0,0.31563331]
[1737263573761,5.00089943,104560.0,104550.0,0.46467694]
[1737263573965,5.00089943,104560.0,104550.0,0.56467694]
[1737263575686,5.00089943,104560.0,104550.0,0.57398526]
[1737263575874,5.00089943,104560.0,104550.0,0.6055136]
[1737263576511,5.00089943,104560.0,104550.0,0.56750526]
[1737263576715,5.00089943,104560.0,104550.0,0.57398526]
[1737263577749,5.00089943,104560.0,104550.0,0.67398526]
[1737263579608,5.00089943,104560.0,104550.0,0.7055136]
[1737263580589,5.00089943,104560.0,104550.0,0.6990336]
[1737263580786,5.00089943,104560.0,104550.0,0.7055136]
[1737263586405,5.00089943,104560.0,104550.0,0.67398526]
[1737263590629,5.00089943,104560.0,104550.0,0.66750526]
[1737263590832,5.00089943,104560.0,104550.0,0.67398526]
[1737263592209,5.00089943,104560.0,104550.0,0.66564309]
[1737263596041,5.00089943,104560.0,104550.0,0.65916309]
[1737263596358,5.00089943,104560.0,104550.0,0.66564309]
[1737263596567,5.00089943,104560.0,104550.0,0.65916309]
[1737263596763,5.00089943,104560.0,104550.0,0.66564309]
[1737263597429,5.00089943,104560.0,104550.0,0.65916309]
[1737263597735,5.00089943,104560.0,104550.0,0.66564309]
[1737263598858,5.00089943,104560.0,104550.0,0.67400688]
[1737263600608,5.00089943,104560.0,104550.0,0.70553522]
[1737263601459,5.00089943,104560.0,104550.0,0.69905522]
[1737263601673,5.00089943,104560.0,104550.0,0.46256092]
[1737263601878,5.00089943,104560.0,104550.0,0.31880092]
[1737263602094,5.15089943,104560.0,104550.0,0.21256092]
[1737263602306,5.02862023,104560.0,104550.0,0.24180092]
[1737263602461,5.02862023,104560.0,104550.0,0.23556092]
[1737263602670,5.10912023,104560.0,104550.0,0.23556092]
[1737263602888,5.10912023,104560.0,104550.0,0.24180092]
[1737263603295,5.10912023,104560.0,104550.0,0.23556092]
[1737263603499,5.04861006,104560.0,104550.0,0.30076688]
[1737263604593,4.9970867,104560.0,104550.0,0.30076688]
[1737263604823,4.79300499,104560.0,104550.0,0.30076688]
[1737263605262,4.79300499,104560.0,104550.0,0.29452688]
[1737263605439,4.79300499,104560.0,104550.0,0.30076688]
[1737263606542,4.79300499,104560.0,104550.0,0.21880092]
[1737263607090,4.88864299,104560.0,104550.0,0.10401179]
[1737263607299,4.78594299,104560.0,104550.0,0.00836379]
[1737263607503,4.78594299,104560.0,104550.0,0.01460379]
[1737263607701,4.86790895,104560.0,104550.0,0.00836379]
[1737263608182,4.78594299,104560.0,104550.0,0.00836379]
[1737263609388,4.86790895,104560.0,104550.0,0.00836379]
[1737263610170,4.78594299,104560.0,104550.0,0.00836379]
[1737263611503,4.78684158,104560.0,104550.0,0.00836379]
[1737263613890,4.7869745,104560.0,104550.0,0.00836379]
[1737263614290,4.86894046,104560.0,104550.0,0.00836379]
[1737263614823,4.95404457,104560.0,104550.0,0.00836379]
[1737263615024,4.87207861,104560.0,104550.0,0.00836379]
[1737263615798,0.0801,104550.0,104540.0,0.01503169]
[1737263616000,0.175748,104550.0,104540.0,0.01503169]
[1737263617399,0.175748,104550.0,104540.0,0.00879169]
[1737263617606,0.175748,104550.0,104540.0,0.10444869]
[1737263619109,0.175748,104550.0,104540.0,0.11068869]
[1737263619533,0.175748,104550.0,104540.0,0.01503169]
[1737263619744,0.175748,104550.0,104540.0,0.11068869]
[1737263621082,0.175748,104550.0,104540.0,0.10444869]
[1737263621282,0.175748,104550.0,104540.0,0.11068869]
[1737263621467,0.175748,104550.0,104540.0,0.00879169]
[1737263621663,0.17688543,104550.0,104540.0,0.00879169]
[1737263621879,0.175748,104550.0,104540.0,0.10444869]
[1737263622549,0.0801,104550.0,104540.0,0.10444869]
[1737263622750,0.175748,104550.0,104540.0,0.10444869]
[1737263622975,0.175748,104550.0,104540.0,0.11068869]
[1737263627649,0.17688543,104550.0,104540.0,0.11068869]
[1737263627816,0.17688543,104550.0,104540.0,0.01503169]
[1737263628043,0.17688543,104550.0,104540.0,0.00879169]
[1737263628250,0.22308543,104550.0,104540.0,0.00879169]
[1737263628458,0.30391396,104550.0,104540.0,0.00879169]
[1737263628664,0.2296,104520.0,104500.0,1.192633]
[1737263628910,0.325275,104520.0,104510.0,0.101923]
[1737263629141,0.2758,104520.0,104510.0,0.09595759]
[1737263629342,0.2758,104520.0,104510.0,0.09894907]
[1737263629493,0.20831769,104520.0,104510.0,0.09894907]
[1737263629693,0.20945512,104520.0,104510.0,0.09894907]
[1737263630229,0.20831769,104520.0,104510.0,0.09894907]
[1737263632987,0.20945512,104520.0,104510.0,0.09894907]
[1737263633166,0.20945512,104520.0,104500.0,1.0012]
[1737263633167,0.371484,104510.0,104500.0,1.0012]
[1737263633389,0.55269077,104510.0,104500.0,0.61226151]
[1737263633589,1.25269077,104510.0,104500.0,0.61235307]
[1737263633752,1.35269077,104510.0,104500.0,0.61226151]
[1737263633961,1.45193158,104510.0,104500.0,0.34179367]
[1737263634160,1.45193158,104510.0,104500.0,0.25097922]
[1737263634359,1.45193158,104510.0,104500.0,0.1983781]
[1737263634601,1.25269077,104510.0,104500.0,0.19887635]
[1737263635149,1.46558992,104510.0,104500.0,0.19887635]
[1737263635686,1.48467427,104510.0,104500.0,0.19887635]
[1737263636194,0.2729,104480.0,104470.0,0.0004288]
[1737263636399,0.63178473,104480.0,104470.0,0.0004288]
[1737263636593,0.54981877,104480.0,104470.0,0.00079516]
[1737263636795,0.45057796,104480.0,104470.0,0.00079516]
[1737263637023,0.40417796,104480.0,104470.0,0.00079516]
[1737263638254,1.10417796,104480.0,104470.0,0.00079516]
[1737263639948,1.38462554,104480.0,104470.0,0.00079516]
[1737263641019,1.53462554,104480.0,104470.0,0.00079516]
[1737263641808,1.43538473,104480.0,104470.0,0.00079516]
[1737263642004,1.53538473,104480.0,104470.0,0.00079516]
[1737263643337,1.54482677,104480.0,104470.0,0.00079516]
[1737263643905,0.84482677,104480.0,104470.0,0.00079516]
[1737263645201,0.89072677,104480.0,104470.0,0.00079516]
[1737263645833,0.64072677,104480.0,104470.0,0.00079516]
[1737263646047,0.64072677,104480.0,104450.0,0.0004282]
[1737263646048,0.46773,104460.0,104450.0,0.0004282]
[1737263646252,0.78714273,104460.0,104450.0,0.0004282]
[1737263646455,0.78714273,104460.0,104440.0,0.00025]
[1737263646456,0.56851754,104460.0,104440.0,0.00025]
[1737263646661,0.43614916,104450.0,104440.0,0.00025]
[1737263646982,0.43501173,104450.0,104440.0,0.00034216]
[1737263647179,0.195767,104420.0,104410.0,0.004789]
[1737263647381,0.4281112,104420.0,104410.0,0.004789]
[1737263647654,0.42697377,104420.0,104410.0,0.00506411]
[1737263648267,1.20307377,104420.0,104410.0,0.00506411]
[1737263648477,1.20307377,104420.0,104410.0,0.00027511]
[1737263648652,0.095776,104410.0,104400.0,0.000538]
[1737263648887,0.27698277,104410.0,104400.0,0.000538]
[1737263649308,0.17774196,104410.0,104400.0,0.000538]
[1737263649513,0.15,104410.0,104400.0,0.096323]
[1737263649923,0.15049963,104410.0,104400.0,0.096323]
[1737263650146,0.15049963,104410.0,104400.0,0.09931789]
[1737263650359,0.15163706,104410.0,104400.0,0.09931789]
[1737263650879,0.17937902,104410.0,104400.0,0.00353289]
[1737263651077,0.00049963,104410.0,104400.0,0.1985587]
[1737263651277,0.00049963,104410.0,104400.0,0.30551637]
[1737263651685,0.00049963,104410.0,104400.0,0.45551637]
[1737263652097,0.00049963,104410.0,104400.0,0.61944829]
[1737263652292,0.00049963,104410.0,104400.0,0.61849062]
[1737263652715,0.00049963,104410.0,104400.0,0.6329769]
[1737263653061,0.00049963,104410.0,104400.0,0.63776873]
[1737263653472,0.00049963,104410.0,104400.0,0.55912551]
[1737263653681,0.00049963,104410.0,104400.0,0.55949236]
[1737263653852,0.00049963,104410.0,104400.0,0.40949236]
[1737263654869,0.15049963,104410.0,104400.0,0.40949236]
[1737263655069,0.15049963,104410.0,104400.0,0.19572285]
[1737263655299,0.00049963,104410.0,104400.0,0.48189558]
[1737263655476,0.00049963,104410.0,104400.0,0.73813558]
[1737263655677,0.00049963,104410.0,104400.0,0.7430979]
[1737263655900,0.15,104440.0,104430.0,0.095757]
[1737263656199,0.15,104440.0,104430.0,0.17795771]
[1737263656760,0.15,104440.0,104430.0,0.09599175]
[1737263657593,0.122,104460.0,104430.0,0.00023475]
[1737263657914,0.15,104440.0,104430.0,0.29527347]
[1737263658129,0.15,104440.0,104430.0,0.29518179]
[1737263658345,0.15,104440.0,104430.0,0.30351975]
[1737263658839,0.15,104440.0,104430.0,0.30338683]
[1737263659616,0.39687843,104450.0,104430.0,0.11189183]
[1737263659848,0.40037824,104450.0,104430.0,0.11188983]
[1737263660017,0.25037824,104450.0,104430.0,0.11179815]
[1737263660205,0.24924081,104450.0,104430.0,0.30331315]
[1737263660717,0.09924081,104450.0,104430.0,0.30331315]
[1737263660919,0.15,104440.0,104430.0,0.30331315]
[1737263661136,0.122,104460.0,104440.0,0.095747]
[1737263661341,0.17534081,104460.0,104450.0,0.095739]
[1737263661642,0.87534081,104460.0,104440.0,0.287237]
[1737263661793,0.87534081,104460.0,104440.0,0.478723]
[1737263662005,0.87534081,104460.0,104440.0,0.287228]
[1737263662213,0.87534081,104460.0,104440.0,0.29022289]
[1737263662420,0.87534081,104460.0,104440.0,0.29023389]
[1737263662794,0.87534081,104460.0,104440.0,0.29848017]
[1737263662972,0.00113743,104450.0,104440.0,0.29848017]
[1737263663112,0.00113743,104450.0,104440.0,0.10698317]
[1737263665131,0.00113743,104450.0,104440.0,0.01124117]
[1737263667751,0.09687643,104450.0,104440.0,0.01124117]
[1737263668139,0.00113743,104450.0,104440.0,0.01124117]
[1737263668567,0.09687643,104450.0,104440.0,0.01124117]
[1737263669827,0.09777629,104450.0,104440.0,0.01124117]
[1737263669952,0.09663886,104450.0,104440.0,0.01124117]
[1737263670640,0.00089986,104450.0,104440.0,0.01124117]
[1737263671701,0.00089986,104450.0,104440.0,0.10698917]
[1737263672105,0.09663886,104450.0,104440.0,0.01124117]
[1737263672757,0.00089986,104450.0,104440.0,0.01124117]
[1737263673171,0.09663886,104450.0,104440.0,0.01124117]
[1737263673807,0.00089986,104450.0,104440.0,0.10698917]
[1737263674038,0.70089986,104450.0,104440.0,0.10698917]
[1737263674247,0.095752,104440.0,104420.0,0.095759]
[1737263674464,0.19499281,104440.0,104420.0,0.095759]
[1737263674685,0.09924081,104440.0,104430.0,9.168e-05]
[1737263674894,0.19498881,104440.0,104430.0,9.168e-05]
[1737263675479,0.72462286,104450.0,104430.0,9.168e-05]
[1737263675736,0.095748,104440.0,104430.0,0.09584868]
[1737263675911,0.095748,104440.0,104420.0,0.191522]
[1737263676160,0.287246,104440.0,104420.0,0.478814]
[1737263676366,0.287246,104440.0,104430.0,9.168e-05]
[1737263677335,0.365046,104440.0,104430.0,9.168e-05]
[1737263679325,0.745377,104440.0,104430.0,9.168e-05]
[1737263679549,0.936884,104440.0,104420.0,0.287297]
[1737263679672,0.745377,104440.0,104430.0,9.168e-05]
[1737263680084,0.87378911,104440.0,104430.0,9.168e-05]
[1737263681175,0.66088996,104440.0,104430.0,9.168e-05]
[1737263682117,0.87378911,104440.0,104430.0,9.168e-05]
[1737263682353,1.05499588,104440.0,104430.0,0.00051998]
[1737263682750,1.20439588,104440.0,104430.0,0.00051998]
[1737263682954,1.50439588,104440.0,104430.0,0.00051998]
[1737263683740,1.20855192,104440.0,104430.0,0.00051998]
[1737263684359,1.90855192,104440.0,104430.0,0.00051998]
[1737263684967,1.95113175,104440.0,104430.0,0.00051998]
[1737263685815,1.96057779,104440.0,104430.0,0.00051998]
[1737263686481,1.99235572,104440.0,104430.0,0.00051998]
[1737263686707,1.70510972,104440.0,104410.0,0.095774]
[1737263686943,0.095767,104420.0,104410.0,0.095774]
[1737263687156,0.46501696,104430.0,104410.0,0.095774]
[1737263687157,0.478816,104430.0,104410.0,0.095774]
[1737263687652,0.095767,104420.0,104410.0,0.09876864]
[1737263688218,0.18066179,104420.0,104410.0,0.09876864]
[1737263688422,0.08489479,104420.0,104410.0,0.09876864]
[1737263688855,0.18066179,104420.0,104410.0,0.09876864]
[1737263690075,0.095767,104420.0,104410.0,0.09876864]
[1737263690943,0.095767,104420.0,104410.0,0.00299464]
[1737263691349,0.095767,104420.0,104410.0,0.09877064]
[1737263691776,1.07307852,104430.0,104410.0,0.29032164]
[1737263692424,1.26460652,104430.0,104410.0,0.29032164]
[1737263692727,0.095767,104420.0,104410.0,0.29032164]
[1737263692940,0.095767,104420.0,104410.0,0.09877064]
[1737263693338,0.095767,104420.0,104410.0,0.00299464]
[1737263693692,0.095767,104420.0,104410.0,0.09877064]
[1737263694143,0.095767,104420.0,104410.0,0.10709093]
[1737263694348,1.07307852,104430.0,104410.0,0.29882536]
[1737263694522,0.095767,104420.0,104410.0,0.29882536]
[1737263694725,1.07307852,104430.0,104410.0,0.29882536]
[1737263695084,0.095767,104420.0,104410.0,0.29873364]
[1737263695282,1.07307652,104430.0,104410.0,0.29873364]
[1737263695487,0.095767,104420.0,104410.0,0.10727436]
[1737263695689,0.095767,104420.0,104410.0,0.10761104]
[1737263695903,0.095767,104420.0,104410.0,0.10770276]
[1737263696862,0.095767,104420.0,104410.0,0.01192676]
[1737263697430,0.095767,104420.0,104410.0,0.10770276]
[1737263697568,0.095767,104420.0,104410.0,0.00893212]
[1737263698406,0.095767,104420.0,104410.0,0.10470812]
[1737263698642,0.66930955,104430.0,104410.0,0.29625612]
[1737263698853,0.86083555,104430.0,104410.0,0.48779712]
[1737263699012,1.05236355,104430.0,104410.0,0.2961574]
[1737263699208,0.86083555,104430.0,104410.0,0.2961574]
[1737263699809,1.05236355,104430.0,104410.0,0.2961574]
[1737263700214,0.53202655,104430.0,104420.0,0.170967]
[1737263700799,0.23489479,104430.0,104420.0,0.17105871]
[1737263701463,0.33065179,104430.0,104420.0,9.171e-05]
[1737263701668,0.18065179,104430.0,104420.0,9.171e-05]
[1737263702083,0.095757,104430.0,104420.0,9.171e-05]
[1737263702290,0.15,104430.0,104420.0,0.09585671]
[1737263702498,0.15,104430.0,104420.0,0.28738971]
[1737263703547,0.15,104430.0,104420.0,9.171e-05]
[1737263703548,0.43785313,104430.0,104420.0,9.171e-05]
[1737263703752,0.55266377,104430.0,104420.0,9.171e-05]
[1737263704819,1.01958511,104430.0,104420.0,9.171e-05]
[1737263705660,0.80734814,104430.0,104420.0,9.171e-05]
[1737263705865,1.50734814,104430.0,104420.0,9.171e-05]
[1737263706074,1.60658895,104430.0,104420.0,9.171e-05]
[1737263706298,1.70658895,104430.0,104420.0,9.171e-05]
[1737263706505,0.90692675,104430.0,104420.0,9.171e-05]
[1737263707543,0.90692675,104430.0,104420.0,0.00052011]
[1737263707948,0.90782639,104430.0,104420.0,0.00036131]
[1737263708573,0.91750251,104430.0,104420.0,0.00036131]
[1737263709407,1.61750251,104430.0,104420.0,0.00036131]
[1737263713927,1.82977456,104430.0,104420.0,0.00036131]
[1737263714895,1.61750251,104430.0,104420.0,0.00036131]
[1737263719042,0.91750251,104430.0,104420.0,0.00036131]
[1737263721881,1.64407473,104430.0,104420.0,0.00036131]
[1737263722221,2.34407473,104430.0,104420.0,0.00036131]
[1737263722603,1.90475942,104430.0,104420.0,0.00036131]
[1737263722995,2.00400023,104430.0,104420.0,0.00036131]
[1737263723201,1.80475942,104430.0,104420.0,0.00036131]
[1737263723392,1.82775942,104430.0,104420.0,0.00036131]
[1737263723627,0.277267,104420.0,104410.0,0.00016505]
[1737263723835,0.45847377,104420.0,104410.0,0.00016505]
[1737263724080,0.45847377,104420.0,104410.0,0.00025677]
[1737263725027,0.74573068,104420.0,104410.0,0.00025677]
[1737263725272,0.74573068,104420.0,104410.0,0.00016505]
[1737263726015,1.18501925,104420.0,104410.0,0.00016505]
[1737263726225,1.08501925,104420.0,104410.0,1.681e-05]
[1737263726457,1.08501925,104420.0,104410.0,0.00010853]
[1737263726661,1.08501925,104420.0,104410.0,1.681e-05]
[1737263728300,1.10448685,104420.0,104410.0,1.681e-05]
[1737263728504,1.80448685,104420.0,104410.0,1.681e-05]
[1737263730363,1.10448685,104420.0,104410.0,1.681e-05]
[1737263730748,1.10448685,104420.0,104410.0,0.00010853]
[1737263733020,1.50969314,104420.0,104410.0,0.00010853]
[1737263733184,1.50969314,104420.0,104410.0,1.681e-05]
[1737263734009,1.25448685,104420.0,104410.0,1.681e-05]
[1737263734209,1.95448685,104420.0,104410.0,1.681e-05]
[1737263734669,1.51519828,104420.0,104410.0,1.681e-05]
[1737263735869,1.95448685,104420.0,104410.0,1.681e-05]
[1737263736088,1.25448685,104420.0,104410.0,1.681e-05]
[1737263736568,1.33645281,104420.0,104410.0,1.681e-05]
[1737263736799,1.25448685,104420.0,104410.0,1.681e-05]
[1737263737011,1.33645281,104420.0,104410.0,1.681e-05]
[1737263737213,0.48910792,104410.0,104400.0,0.00051481]
[1737263737428,0.58834873,104410.0,104400.0,0.00051481]
[1737263738453,0.84356425,104410.0,104400.0,0.00051481]
[1737263738896,0.095794,104390.0,104380.0,0.13249566]
[1737263739152,0.52700077,104390.0,104380.0,0.00299566]
[1737263740011,0.65780677,104390.0,104370.0,0.08149337]
[1737263740214,0.52700977,104380.0,104370.0,0.00479337]
[1737263740612,0.37700977,104380.0,104370.0,0.00479337]
[1737263741404,0.095812,104370.0,104360.0,0.121588]
[1737263741612,0.27701877,104370.0,104360.0,0.121588]
[1737263742238,0.27668239,104370.0,104360.0,0.121588]
[1737263742379,0.09547562,104370.0,104360.0,0.121588]
[1737263742590,0.09562529,104370.0,104360.0,0.121588]
[1737263743030,0.09562529,104370.0,104360.0,0.1245842]
[1737263743251,0.17759125,104370.0,104360.0,0.1245842]
[1737263743453,0.09562529,104370.0,104360.0,0.1245842]
[1737263746307,0.15014967,104370.0,104360.0,0.22873046]
[1737263746736,0.15014967,104370.0,104360.0,0.22928106]
[1737263747581,0.24596167,104370.0,104360.0,0.13345906]
[1737263748413,0.17792763,104370.0,104360.0,0.13345906]
[1737263748621,0.09596167,104370.0,104360.0,0.13345906]
[1737263749450,0.09596167,104370.0,104360.0,0.13825274]
[1737263750061,0.17792763,104370.0,104360.0,0.13825274]
[1737263750475,0.17792763,104370.0,104360.0,0.01715274]
[1737263750681,0.27716844,104370.0,104360.0,0.01715274]
[1737263750883,0.27716844,104370.0,104360.0,0.01235906]
[1737263751509,0.19520248,104370.0,104360.0,0.01235906]
[1737263752358,0.27716844,104370.0,104360.0,0.01235906]
[1737263755379,0.27716844,104370.0,104360.0,0.01715282]
[1737263755528,0.27806745,104370.0,104360.0,0.01715282]
[1737263756160,0.49051691,104370.0,104360.0,0.01715282]
[1737263756396,0.74051691,104370.0,104360.0,0.01715282]
[1737263756810,0.81651691,104370.0,104360.0,0.00882856]
[1737263757007,0.81651691,104370.0,104360.0,0.0010386]
[1737263757209,0.98652588,104370.0,104360.0,0.0010386]
[1737263757614,0.98576669,104370.0,104360.0,0.0010386]
[1737263758202,0.98576669,104370.0,104360.0,0.000488]
[1737263758566,0.88652588,104370.0,104360.0,0.000488]
[1737263758772,0.88652588,104370.0,104360.0,0.0010386]
[1737263758897,0.93362588,104370.0,104360.0,0.000488]
[1737263759110,1.14613709,104370.0,104360.0,0.0010386]
[1737263759343,1.24613709,104370.0,104360.0,0.000488]
[1737263759548,1.94613709,104370.0,104360.0,0.0010386]
[1737263759749,1.89903709,104370.0,104360.0,0.000488]
[1737263759951,1.94493709,104370.0,104360.0,0.000488]
[1737263760163,1.94493709,104370.0,104360.0,0.0010386]
[1737263760364,1.94493709,104370.0,104360.0,0.000488]
[1737263760576,1.94493709,104370.0,104360.0,0.0010386]
[1737263760794,1.8599692,104370.0,104360.0,0.0010386]
[1737263760984,1.2099692,104370.0,104360.0,0.0010386]
[1737263761799,1.18172844,104370.0,104360.0,0.0010386]
[1737263762246,1.08248763,104370.0,104360.0,0.0010386]
[1737263763831,1.01445359,104370.0,104360.0,0.0010386]
[1737263764480,1.71445359,104370.0,104360.0,0.0010386]
[1737263765241,1.58699918,104370.0,104360.0,0.000488]
[1737263765449,0.345831,104350.0,104340.0,0.00299652]
[1737263765656,1.30663777,104350.0,104340.0,0.00373079]
[1737263765877,1.30663777,104350.0,104340.0,0.00073427]
[1737263766091,0.60663777,104350.0,104340.0,0.00073427]
[1737263766745,0.57738584,104350.0,104340.0,0.09657427]
[1737263767181,0.38231403,104350.0,104340.0,0.09657427]
[1737263767384,0.53231403,104350.0,104340.0,0.22227427]
[1737263767523,0.095822,104360.0,104350.0,0.095831]
[1737263767723,0.65791964,104370.0,104350.0,0.287486]
[1737263767924,0.56551945,104370.0,104350.0,0.47979042]
[1737263768179,0.095822,104360.0,104350.0,0.28812842]
[1737263768569,0.56551845,104370.0,104350.0,0.28812842]
[1737263768778,0.57937049,104370.0,104350.0,0.28812842]
[1737263768949,0.095822,104360.0,104350.0,0.28812842]
[1737263769388,0.96171012,104370.0,104350.0,0.28812842]
[1737263769608,0.095822,104360.0,104350.0,0.29112484]
[1737263770141,0.86589112,104370.0,104350.0,0.29112484]
[1737263770263,0.095822,104360.0,104350.0,0.29112484]
[1737263770463,0.245822,104360.0,104350.0,0.29112484]
[1737263770731,0.095822,104360.0,104350.0,0.09946984]
[1737263771122,1.07830148,104370.0,104350.0,0.09882742]
[1737263771346,1.12035674,104370.0,104350.0,0.09882742]
[1737263771504,1.12035674,104370.0,104350.0,0.10715933]
[1737263771505,0.095822,104360.0,104350.0,0.10715933]
[1737263771704,0.095822,104360.0,104350.0,0.01132833]
[1737263771907,0.27702877,104360.0,104350.0,0.01132833]
[1737263772554,0.45662877,104360.0,104350.0,0.00299642]
[1737263772800,0.55586958,104360.0,104350.0,0.00299642]
[1737263773354,0.45662877,104360.0,104350.0,0.00299642]
[1737263773586,0.245831,104350.0,104340.0,0.06305447]
[1737263773803,0.42703777,104350.0,104340.0,0.06305447]
[1737263774284,0.42703777,104350.0,104340.0,0.01355447]
[1737263774724,0.42703777,104350.0,104340.0,0.00522268]
[1737263775130,0.27703777,104350.0,104340.0,0.00342479]
[1737263776481,0.37627858,104350.0,104340.0,0.00342479]
[1737263776680,0.37699777,104350.0,104340.0,0.00342479]
[1737263777899,0.27699777,104350.0,104340.0,0.00342479]
[1737263778249,0.36196191,104350.0,104340.0,0.00342479]
[1737263778464,0.27999595,104350.0,104340.0,0.09926479]
[1737263779366,0.27999595,104350.0,104340.0,0.00342479]
[1737263779547,0.27999595,104350.0,104340.0,0.09926479]
[1737263780063,0.27999595,104350.0,104340.0,0.00342479]
[1737263780244,0.27999595,104350.0,104340.0,0.09926479]
[1737263781641,0.08496414,104350.0,104340.0,0.09926479]
[1737263781851,0.23496414,104350.0,104340.0,0.14706479]
[1737263782196,0.08496414,104350.0,104340.0,0.20846479]
[1737263782395,0.08496414,104350.0,104340.0,0.29043075]
[1737263782548,0.08496414,104350.0,104340.0,0.53967156]
[1737263782753,0.08496414,104350.0,104340.0,0.4577056]
[1737263782932,0.08496414,104350.0,104340.0,0.55442314]
[1737263783148,0.21241035,104360.0,104340.0,0.7948413]
[1737263783373,0.21241035,104360.0,104350.0,0.12321024]
[1737263783748,0.21241035,104360.0,104350.0,0.095831]
[1737263783950,0.21241035,104360.0,104350.0,0.10422258]
[1737263784153,0.023,104360.0,104350.0,0.10518079]
[1737263784715,0.00104868,104370.0,104360.0,0.095822]
[1737263784940,0.00104868,104370.0,104350.0,0.87423939]
[1737263785117,0.00104868,104370.0,104360.0,0.095822]
[1737263785431,0.02404868,104370.0,104360.0,0.10421358]
[1737263786880,0.21910149,104370.0,104360.0,0.10421358]
[1737263787097,0.30106745,104370.0,104360.0,0.00839158]
[1737263787329,0.45106745,104370.0,104360.0,0.00839158]
[1737263788881,0.173,104360.0,104350.0,0.287487]
[1737263789090,0.27224081,104360.0,104350.0,0.287487]
[1737263790885,0.173,104360.0,104350.0,0.29586535]
[1737263791098,0.00104868,104370.0,104360.0,0.095822]